Cogmind - Beta 17 @@@ ROGUE MODE // 2026.07.21 @ 18:50:50 Player: Goose Result: Destroyed by G-47 Trooper with Particle Gun Performance ------------- Evolutions (2) 1000 Regions Visited (7) 1400 Robots Destroyed (65) 325 Value Destroyed (1467) 1467 Prototype IDs (1) 20 Alien Tech Used (0) 0 Bonus (0) 0 TOTAL SCORE: 4212 Bonus ------- None Cogmind --------- Core Integrity 0/550 Matter 300/300 Energy 100/100 System Corruption 23% Temperature Cool (9) Movement Core (100) Ox1 Location -8/Storage Parts ------- > --- POWER (1) -------- (None) > --- PROPULSION (4) --- (None) > --- UTILITY (3) ------ Small Storage Unit > --- WEAPON (3) ------- (None) > --- INVENTORY (8) ---- Field Laser Heavy Assault Rifle Peak State ------------ > --- POWER ------------ Light Angular Momentum Engine > --- PROPULSION ------- Carbon-fiber Leg Carbon-fiber Leg Aerolev Unit Aerolev Unit > --- UTILITY ---------- Small Storage Unit Advanced Targeting Computer Melee Analysis Suite > --- WEAPON ----------- Beamcaster Ion Cannon Maul > --- INVENTORY -------- Light Ion Engine Improved Aluminum Leg Aerolev Unit Field Laser Heavy Assault Rifle [Rating: 37] Favorites ----------- Power Light Ion Engine Engine Light Ion Engine Power Core Light Nuclear Core Propulsion Light Treads Treads Light Treads Leg Aluminum Leg Hover Unit Aerolev Unit Flight Unit Flight Unit Utility Light Armor Plating Device Sensor Array Storage Small Storage Unit Processor Visual Processing Unit Hackware Hacking Suite Protection Light Armor Plating Weapon Maul Energy Gun Beam Rifle Energy Cannon Ion Cannon Ballistic Gun Assault Rifle Launcher Rocket Launcher Impact Weapon Maul Build | -11 -10 -9 -9 -9 -8 -8 -8 ------- Run | Yrd Mat Mat Min Exi Min Mat Sto Slots Evolved 4 | . . 2 . . . 2 . Power . | . . . . . . . . Propulsion 2 | . . 2 . . . . . Utility 1 | . . . . . . 1 . Weapon 1 | . . . . . . 1 . Parts Attached 66 | 6 9 10 8 . 4 18 11 Power 8 | 1 1 2 1 . . 1 2 Engine 7 | 1 . 2 1 . . 1 2 Core 1 | . 1 . . . . . . Reactor . | . . . . . . . . Propulsion 23 | 2 4 4 2 . 2 6 3 Treads 9 | . 3 4 . . . 2 . Leg 8 | 2 1 . 2 . . 1 2 Wheel . | . . . . . . . . Hover 3 | . . . . . . 2 1 Flight 3 | . . . . . 2 1 . Utility 19 | 1 3 1 2 . 1 6 5 Device 1 | . . . . . . . 1 Storage 3 | 1 . 1 . . . 1 . Processor 4 | . 1 . . . . 1 2 Hackware 1 | . . . . . . 1 . Protection 10 | . 2 . 2 . 1 3 2 Artifact . | . . . . . . . . Weapon 16 | 2 1 3 3 . 1 5 1 Energy Gun 8 | . 1 1 1 . 1 3 1 Energy Cannon 1 | . . . . . . 1 . Ballistic Gun 5 | 2 . 1 1 . . 1 . Ballistic Cannon . | . . . . . . . . Launcher 1 | . . 1 . . . . . Special Weapon . | . . . . . . . . Impact Weapon 1 | . . . 1 . . . . Slashing Weapon . | . . . . . . . . Piercing Weapon . | . . . . . . . . Special Melee Weapon . | . . . . . . . . Unidentified Prototypes 1 | . . . . . . 1 . Corrupted Parts 1 | . . . . . . . 1 System Corruption 10 | . . . . . . . 10 Parts Lost 43 | . 3 5 8 . 1 7 19 Power 8 | . 1 1 2 . . 1 3 Propulsion 13 | . 1 2 2 . . 1 7 Utility 11 | . 1 . . . 1 3 6 Weapon 11 | . . 2 4 . . 2 3 Highest Loss Streak 13 | . 3 3 8 . 1 4 13 To Critical Strikes 1 | . . . . . . 1 . Average Backups 6 | . 6 10 7 4 4 4 5 Power . | . 1 1 . . . . . Propulsion . | . 1 . . . . . 1 Utility 3 | . 1 5 5 4 3 2 1 Weapon 1 | . 1 2 1 . . . 1 Tool/Special . | . . . . . . . . Unused Backups 8 | . 4 . 3 . . 1 . Power . | . . . . . . . . Propulsion 2 | . 2 . . . . . . Utility 2 | . 1 . 1 . . . . Weapon 3 | . 1 . 1 . . 1 . Tool/Special 1 | . . . 1 . . . . Average Slot Usage (%) 81 | . 97 99 50 44 47 92 90 Engine 9 | . 9 11 9 11 11 6 6 Treads 12 | . 5 43 4 . . 10 8 Leg 6 | . 21 . 1 . . 5 6 Hover 2 | . . . . . . 5 17 Flight 2 | . . . . . 1 11 . Storage 6 | . 14 11 4 . . . 9 Processor 4 | . 3 11 2 . . 3 6 Hackware 1 | . . . . . . 3 4 Protection 12 | . 9 . 14 22 22 19 5 Energy Gun 7 | . 11 4 . . 1 12 9 Ballistic Gun 6 | . 16 11 2 . . 2 . Launcher 1 | . . 6 1 . . . . Impact Weapon 5 | . . . 8 11 11 9 9 Peak Build Rating 37 | 6 11 15 14 5 10 27 37 Average Rating 12 | 4 8 12 6 5 5 20 26 On Entrance 9 | . 6 9 13 5 5 10 27 Avg Prop Armor Cover (%) 7 | . . . . . . 7 6 Naked Turns . | . . . . . . . . Heaviest Build 34 | 14 18 34 34 12 15 30 31 Greatest Support 80 | 20 40 80 60 3 8 40 43 Greatest Overweight (x) 8 | 1 1 . 8 3 4 2 1 Average Overweight (x) . | . . . 2 3 2 . . Largest Inventory Capacity 15 | 8 8 15 15 5 5 8 8 Average Capacity 8 | 7 8 14 8 5 5 5 8 Most Carried 15 | 2 8 15 14 4 5 6 7 Average Carried 6 | . 6 10 7 4 4 4 4 Final Capacity 15 | 8 8 15 5 5 5 8 8 Final Carried 14 | 2 8 14 4 4 5 6 2 Class Distribution -------------------- 79% | Mutant 20% | Scavenger-Mutant Dominant Class ---------------- Mutant | -10/Materials Mutant | -9/Materials Mutant | -9/Mines Mutant | -9/Exiles Mutant | -8/Mines Scavenger-Mutant | -8/Materials Scavenger-Mutant | -8/Storage Resources | -11 -10 -9 -9 -9 -8 -8 -8 ----------- Run | Yrd Mat Mat Min Exi Min Mat Sto Matter Collected 1305 | 157 320 266 143 . 121 223 75 Remotely . | . . . . . . . . Salvage Created 1788 | . 367 401 . . 36 697 287 Parts 110 | . 21 50 . . 2 29 8 Haulers Intercepted 1 | . . . . . . 1 . Recyclers Shooed . | . . . . . . . . Parts Field Recycled . | . . . . . . . . Retrieved Matter . | . . . . . . . . Parts Self-Destructed . | . . . . . . . . Prevented . | . . . . . . . . Parts Restored . | . . . . . . . . Kills | -11 -10 -9 -9 -9 -8 -8 -8 ------- Run | Yrd Mat Mat Min Exi Min Mat Sto Combat Hostiles Destroyed 42 | . 8 11 . . 3 13 7 Melee 4 | . . . . . 1 1 2 Guns 19 | . 8 6 . . . 5 . Cannons 1 | . . . . . . . 1 AOE 5 | . . 5 . . . . . Classes Destroyed 12 | . 4 5 . . . 2 1 Worker 6 | . 2 1 . . . 3 . Builder 3 | . . 3 . . . . . Tunneler 2 | . . 2 . . . . . Hauler 1 | . . . . . . 1 . Recycler 3 | . . . . . . 3 . Operator 1 | . . 1 . . . . . Watcher 7 | . 3 3 . . . 1 . Swarmer 17 | . 3 4 . . 3 7 . Grunt 17 | . 5 4 . . . 3 5 Duelist 2 | . . 1 . . . . 1 Protector 1 | . . . . . . . 1 Sentry 5 | . . 2 . . . 3 . Best Kill Streak 5 | . 4 5 . . 3 4 3 Combat Bots Only 5 | . 3 5 . . 3 3 3 Max Kills in Single Turn 3 | . 1 3 . . 1 1 1 Gunslinging . | . . . . . . . . Exploded 1 | . . 1 . . . . . Melee 1 | . . . . . 1 1 1 Uniques/NPCs Destroyed . | . . . . . . . . Combat | -11 -10 -9 -9 -9 -8 -8 -8 -------- Run | Yrd Mat Mat Min Exi Min Mat Sto Hostile Shots Fired 519 | . 75 105 21 . 28 137 153 Missed 139 | . 25 31 3 . 8 24 48 Hits 380 | . 50 74 18 . 20 113 105 Melee 11 | . . 6 . . . . 5 Projectile 369 | . 50 68 18 . 20 113 100 AOE 21 | . . . 21 . . . . Critical Strikes 12 | . 1 5 . . . 3 3 Damage Taken 5474 | . 680 1087 754 . 159 1043 1751 Core 1103 | . 165 184 184 . 17 101 452 Absorbed by Shields . | . . . . . . . . Redirected to Shielding 50 | . . . . . . 50 . Ignored by Resistances 142 | . . . . . . 142 . Regen/Repaired (Parts) 71 | . 41 . . . . 30 . Core Remaining (%) 45 | 100 34 . . . 3 . . Volleys Fired 119 | . 43 39 9 . . 19 9 Largest 2 | . 2 2 2 . . 2 2 Hottest 135 | . 76 76 79 . . 128 135 Shots Fired 233 | . 86 74 18 . . 38 17 Gun 208 | . 86 59 16 . . 38 9 Cannon 8 | . . . . . . . 8 Launcher 17 | . . 15 2 . . . . Special . | . . . . . . . . Kinetic 106 | . 47 39 9 . . 11 . Thermal 104 | . 39 20 7 . . 21 17 Explosive 17 | . . 15 2 . . . . Electromagnetic 6 | . . . . . . 6 . Robot Hit Streak 7 | . 7 7 4 . . 7 5 Robot Miss Streak 8 | . 8 5 4 . . 4 2 Penetration Max . | . . . . . . . . Secondary Targets . | . . . . . . . . Shots Hit Robots 176 | . 49 39 8 . 3 52 25 Core Hits 69 | . 20 30 1 . 1 11 6 Critical Kills 1 | . . . . . . 1 . Critical Parts Destroyed 12 | . . . . . 1 8 3 Critical Strikes 18 | . 2 2 . . 1 9 4 Burn 5 | . 2 2 . . . . 1 Smash 13 | . . . . . 1 9 3 Melee Attacks 71 | . . . . . 5 44 22 Impact 71 | . . . . . 5 44 22 Slashing . | . . . . . . . . Piercing . | . . . . . . . . Sneak Attacks 7 | . . . . . . 7 . Combat Hostiles . | . . . . . . . . Follow-up Attacks . | . . . . . . . . Damage Inflicted 4840 | . 699 1328 115 . 140 1773 785 Guns 1726 | . 699 440 101 . . 343 143 Cannons 112 | . . . . . . . 112 Explosions 902 | . . 888 14 . . . . Melee 2100 | . . . . . 140 1430 530 Ramming . | . . . . . . . . Kinetic 790 | . 365 272 58 . . 95 . Thermal 936 | . 334 168 43 . . 136 255 Explosive 902 | . . 888 14 . . . . Electromagnetic 112 | . . . . . . 112 . Impact 2100 | . . . . . 140 1430 530 Slashing . | . . . . . . . . Piercing . | . . . . . . . . Highest Corruption 23 | . . . . . . . 23 Average Corruption 10 | . . . . . . . 10 Corruption Purged . | . . . . . . . . Corruption Blocked . | . . . . . . . . Effects 4 | . . . . . . . 4 Message Errors 2 | . . . . . . . 2 Matter Fused 2 | . . . . . . . 2 Overload Shots . | . . . . . . . . Overflow Damage 845 | . . 27 . . 76 597 145 Projectiles . | . . . . . . . . Explosions 27 | . . 27 . . . . . Melee 818 | . . . . . 76 597 145 Knockbacks 13 | . . . . . 1 6 6 Impact 13 | . . . . . 1 6 6 Kinetic . | . . . . . . . . Secondary . | . . . . . . . . Self-Inflicted Damage 63 | . . 63 . . . . . Shots 2 | . . 2 . . . . . Rammed . | . . . . . . . . Targets Rammed . | . . . . . . . . Kicked . | . . . . . . . . Crushed . | . . . . . . . . Highest Temperature 422 | . 336 123 27 . . 213 422 Average Temperature 103 | . 145 44 11 . . 54 147 Received Heat Transfer 1770 | . 297 267 . . . 288 918 Effects 5 | . 3 . . . . . 2 Shutdowns 1 | . . . . . . . 1 Energy Bleed 3 | . 3 . . . . . . Short Circuit 1 | . . . . . . . 1 Siege Activations . | . . . . . . . . Martial Activations . | . . . . . . . . Shielding Activations . | . . . . . . . . Robots Disrupted . | . . . . . . . . Combat Hostiles . | . . . . . . . . Robots Corrupted 15 | . . . . . 2 9 4 Combat Hostiles 13 | . . . . . 2 7 4 Parts Fried 11 | . . . . . 1 7 3 Impact Corruptions 32 | . . . . . 3 25 4 Robots Melted . | . . . . . . . . Combat Hostiles . | . . . . . . . . Parts Melted 7 | . 3 3 . . . . 1 Heat Transferred 2553 | . 999 629 111 . . 296 518 Parts Sabotaged . | . . . . . . . . Parts Stolen . | . . . . . . . . Parts Stripped . | . . . . . . . . Power Chain Reactions . | . . . . . . . . Alert | -11 -10 -9 -9 -9 -8 -8 -8 ------- Run | Yrd Mat Mat Min Exi Min Mat Sto Maximum Alert Level 1 | . . 1 . . . . . Low Security (%) 97 | 100 100 88 100 . 100 100 100 Level 1 2 | . . 11 . . . . . Level 2 . | . . . . . . . . Level 3 . | . . . . . . . . Level 4 . | . . . . . . . . Level 5 . | . . . . . . . . High Security . | . . . . . . . . Max Security . | . . . . . . . . Peak Influence 285 | . 77 285 103 . 62 167 67 Initial 103 | . . 5 103 . . 14 67 Average 36 | . 19 93 16 . 6 44 28 Influence Increases 1511 | . 260 502 9 . 70 503 167 Destroy 0b10 Robot/C 820 | . 160 220 . . 60 260 120 Destroy 0b10 Robot/NC 120 | . 25 50 . . . 40 5 Destroy Leader 206 | . 46 66 . . 10 74 10 Allied During Kill 1 | . . . . . . . 1 Successful Hack 33 | . 14 10 . . . 9 . Disable Machine 75 | . 15 60 . . . . . Destroy Structure 91 | . . 81 9 . . . 1 Lose Combat Pursuer 165 | . . 15 . . . 120 30 Influence Decreases 1511 | . 245 250 276 . 32 381 327 Entered New Map 291 | . . 10 164 . . 24 93 Time Decay 947 | . 235 207 52 . 32 311 110 Lost Part 240 | . 10 20 60 . . 46 104 Lost Ally 20 | . . . . . . . 20 Purge Threat 13 | . . 13 . . . . . Squads Dispatched 10 | . 2 3 . . . 2 3 Investigation 2 | . . 1 . . . 1 . Extermination . | . . . . . . . . Reinforcement 6 | . 2 2 . . . 1 1 Assault 2 | . . . . . . . 2 Garrison . | . . . . . . . . Intercept . | . . . . . . . . Searches Triggered . | . . . . . . . . Construction Impeded . | . . . . . . . . Haulers Reinforced . | . . . . . . . . Active Scanning Responses . | . . . . . . . . Cargo Convoy Interrupts . | . . . . . . . . Stealth | -11 -10 -9 -9 -9 -8 -8 -8 --------- Run | Yrd Mat Mat Min Exi Min Mat Sto Distress Signals 5 | . . 2 . . . 3 . Communications Jammed . | . . . . . . . . Distress Signals . | . . . . . . . . Times Spotted 83 | . 16 20 3 . 3 25 16 Peak Tracking Total 8 | . 3 6 2 . 3 5 8 Tactical Retreats 7 | . . 1 . . . 4 2 Traps | -11 -10 -9 -9 -9 -8 -8 -8 ------- Run | Yrd Mat Mat Min Exi Min Mat Sto Traps Triggered 2 | . 2 . . . . . . Indirectly . | . . . . . . . . Trap Hack Attempts . | . . . . . . . . Triggered . | . . . . . . . . Disarmed . | . . . . . . . . Reprogrammed . | . . . . . . . . Reused . | . . . . . . . . Traps Extracted . | . . . . . . . . Installed . | . . . . . . . . Triggered . | . . . . . . . . Machines | -11 -10 -9 -9 -9 -8 -8 -8 ---------- Run | Yrd Mat Mat Min Exi Min Mat Sto Machines Disabled 6 | . 1 5 . . . . . Max in Single Turn 1 | . 1 1 . . . . . Machines Repaired . | . . . . . . . . Machines Dismantled . | . . . . . . . . Machines Sabotaged . | . . . . . . . . Overloaded Fab Kills . | . . . . . . . . Hacking | -11 -10 -9 -9 -9 -8 -8 -8 --------- Run | Yrd Mat Mat Min Exi Min Mat Sto Machines Accessed 12 | . 4 5 . . 1 2 . Terminals 9 | . 2 5 . . 1 1 . Fabricators . | . . . . . . . . Repair Stations 2 | . 1 . . . . 1 . Recycling Units 1 | . 1 . . . . . . Scanalyzers . | . . . . . . . . Garrison Access . | . . . . . . . . Total Hacks 33 | . 12 14 . . 2 5 . Successful 18 | . 8 7 . . . 3 . Failed 15 | . 4 7 . . 2 2 . Catastrophic 4 | . . 2 . . 2 . . Database Lockouts . | . . . . . . . . Manual 9 | . 2 5 . . 2 . . Terminals 25 | . 7 14 . . 2 2 . Fabricators . | . . . . . . . . Repair Stations 7 | . 4 . . . . 3 . Recycling Units 1 | . 1 . . . . . . Scanalyzers . | . . . . . . . . Garrison Access . | . . . . . . . . Terminal Hacks 9 | . 3 5 . . . 1 . Level Access Points 1 | . 1 . . . . . . Branch Access Points 1 | . . . . . . 1 . Emergency Access Points 2 | . . 2 . . . . . Unreport Threat 1 | . . 1 . . . . . Locate Traps 1 | . . 1 . . . . . Reinforcement Status 1 | . . 1 . . . . . Zone Layout 2 | . 2 . . . . . . Fabricator Hacks . | . . . . . . . . Repair Station Hacks 5 | . 3 . . . . 2 . Scan Component 3 | . 2 . . . . 1 . Repair 2 | . 1 . . . . 1 . Recycling Unit Hacks 1 | . 1 . . . . . . Report Inventory 1 | . 1 . . . . . . Scanalyzer . | . . . . . . . . Garrison Access Hacks . | . . . . . . . . Unauthorized Hacks 3 | . 1 2 . . . . . Terminals 3 | . 1 2 . . . . . Assimilate 3 | . 1 2 . . . . . Fabricators . | . . . . . . . . Repair Stations . | . . . . . . . . Recycling Units . | . . . . . . . . Scanalyzers . | . . . . . . . . Garrison Access . | . . . . . . . . Data Cores Recovered . | . . . . . . . . Used . | . . . . . . . . Hacking Detections 9 | . 3 4 . . 1 1 . Full Trace Events 3 | . 1 1 . . . 1 . Feedback Events . | . . . . . . . . Feedback Blocked . | . . . . . . . . Robot Schematics Acquired . | . . . . . . . . Robots Built . | . . . . . . . . Authchips . | . . . . . . . . Time . | . . . . . . . . Total Robot Build Rating . | . . . . . . . . Part Schematics Acquired . | . . . . . . . . Parts Built . | . . . . . . . . Authchips . | . . . . . . . . Time . | . . . . . . . . Total Part Build Rating . | . . . . . . . . Part Studies Acquired . | . . . . . . . . Parts Repaired 2 | . 1 . . . . 1 . Time 52 | . 26 . . . . 26 . Parts Recycled . | . . . . . . . . Recycled Matter . | . . . . . . . . Retrieved Matter . | . . . . . . . . Retrieved Components . | . . . . . . . . Parts Scanalyzed . | . . . . . . . . Part Schematics Acquired . | . . . . . . . . Parts Damaged . | . . . . . . . . Bothacking | -11 -10 -9 -9 -9 -8 -8 -8 ------------ Run | Yrd Mat Mat Min Exi Min Mat Sto Used RIF Installer . | . . . . . . . . Robots Hacked . | . . . . . . . . Non-combat . | . . . . . . . . Combat . | . . . . . . . . Robot Hacks Applied . | . . . . . . . . Relay Couplers Released . | . . . . . . . . Fabnet Peak Effective % . | . . . . . . . . Robots Rewired . | . . . . . . . . Allies Hacked . | . . . . . . . . Hacks Repelled . | . . . . . . . . Allies | -11 -10 -9 -9 -9 -8 -8 -8 -------- Run | Yrd Mat Mat Min Exi Min Mat Sto Total Allies 2 | . . . . . . . 2 Largest Group 2 | . . . . . . . 2 Highest-Rated Group 62 | . . . . . . . 62 Highest-Rated Ally 31 | . . . . . . . 31 Total Orders . | . . . . . . . . Ally Attacks 9 | . . . . . . . 9 Total Damage 144 | . . . . . . . 144 Kills . | . . . . . . . . Allies Corrupted . | . . . . . . . . Allies Melted . | . . . . . . . . Intel | -11 -10 -9 -9 -9 -8 -8 -8 ------- Run | Yrd Mat Mat Min Exi Min Mat Sto Active Infowar (turns) 1066 | . 227 709 125 . . . 5 Optics 1061 | . 227 709 125 . . . . Sensors 5 | . . . . . . . 5 Robot Analysis Total . | . . . . . . . . Derelict Logs Recovered 1 | . . . 1 . . . . Drone Launches . | . . . . . . . . Drone Recoveries . | . . . . . . . . Exploration | -11 -10 -9 -9 -9 -8 -8 -8 ------------- Run | Yrd Mat Mat Min Exi Min Mat Sto Turns Passed 3898 | 67 872 709 509 58 557 823 303 Spaces Moved 1888 | 42 517 351 219 30 277 316 136 Core 445 | 5 . . 171 30 239 . . Treads 851 | . 107 351 38 . . 275 80 Legs 519 | 37 410 . 10 . . 28 34 Wheels . | . . . . . . . . Hover 24 | . . . . . . 2 22 Flight 49 | . . . . . 38 11 . Fastest Speed 50 | 50 120 160 100 200 117 160 102 Average Speed 165 | 135 128 160 212 200 189 188 141 Slowest Speed 450 | 190 190 160 450 200 280 240 190 Overloaded Moves . | . . . . . . . . Propulsion Burnouts . | . . . . . . . . Robots Hopped . | . . . . . . . . Potential Cave-ins . | . . . . . . . . Cave-ins Triggered . | . . . . . . . . Exploration Rate (%) 36 | 3 73 40 56 8 60 29 22 Regions Visited 7 Branch Regions 4 Pre-discovered Areas 1 | . . . 1 . . . . Known Exits Taken 2 | . 1 . . . . 1 . Unknown Exits Taken 5 | 1 . 1 1 1 1 . . Scrap Searched 3 | . . . 1 . 2 . . Spaces Dug . | . . . . . . . . Terrain Destroyed 99 | . . 83 15 . . . 1 Melee . | . . . . . . . . Projectile 1 | . . . . . . . 1 AOE 98 | . . 83 15 . . . . Terrain Rammed . | . . . . . . . . Walls Destroyed . | . . . . . . . . Machines Disabled . | . . . . . . . . Actions | -11 -10 -9 -9 -9 -8 -8 -8 --------- Run | Yrd Mat Mat Min Exi Min Mat Sto Total 2288 | 49 641 424 248 29 296 416 185 Wait 64 | . 48 4 2 . 9 1 . Move 1881 | 41 516 350 218 29 276 315 136 Hop . | . . . . . . . . Pick Up 43 | 2 13 16 2 . 2 6 2 Fast Attach 40 | 6 4 3 4 . 3 14 6 Attach 33 | . 5 8 5 . 1 7 7 Detach 6 | . 2 . . . . 3 1 Swap 3 | . 2 1 . . . . . Drop 28 | . 8 3 8 . . 7 2 Fire 119 | . 43 39 9 . . 19 9 Melee 71 | . . . . . 5 44 22 Ram . | . . . . . . . . Kick . | . . . . . . . . Crush . | . . . . . . . . Escape Stasis . | . . . . . . . . Rewire . | . . . . . . . . Trap . | . . . . . . . . Miscellaneous . | . . . . . . . . Route ------- -11/Scrapyard -10/Materials (discovered 4 exits: *Mat x3 / [*Min]) -9/Materials -9/Mines -9/Exiles -8/Mines -8/Materials (discovered 2 exits: *Sto x2) -8/Storage History --------- Turn | Location | Event 15 | -11/Scrapyard | Discovered new exit (range 16) 68 | -11/Scrapyard | Entered Materials 145 | -10/Materials | Discovered new exit (range 12) 272 | -10/Materials | Discovered new exit (range 10) 306 | -10/Materials | Build established: Mutant 392 | -10/Materials | Repaired Aluminum Leg 597 | -10/Materials | Identified exit to Materials 722 | -10/Materials | Core integrity fell below 50% 746 | -10/Materials | Lost 3 parts (1p1n1u) 940 | -10/Materials | Entered another Materials area 940 | -9/Materials | Evolved 2 slots: Propulsion x2 1215 | -9/Materials | Lost 3 parts (1p2w) 1617 | -9/Materials | Discovered new exit (range 17) 1649 | -9/Materials | Entered Mines 1664 | -9/Mines | Assembled infested the area 1725 | -9/Mines | Core integrity fell below 50% 1785 | -9/Mines | Core integrity fell below 20% 1806 | -9/Mines | Lost 8 parts (2p2n4w) 1976 | -9/Mines | Learned location of Storage (-8) 2150 | -9/Mines | Deemed a non-threat by the Exiles lab entrance 2150 | -9/Mines | Discovered new exit (range 5) 2158 | -9/Mines | Entered Exiles 2188 | -9/Exiles | Discovered new exit (range 15) 2216 | -9/Exiles | Entered Mines 2757 | -8/Mines | Discovered new exit (range 10) 2773 | -8/Mines | Entered Materials 2773 | -8/Materials | Evolved 2 slots: Utility x1, Weapon x1 2823 | -8/Materials | Identified exit to Storage 2962 | -8/Materials | Lost 3 parts (1n2u) 3100 | -8/Materials | Repaired Lgt. Ion Engine 3264 | -8/Materials | Build established: Scavenger-Mutant 3269 | -8/Materials | Lost 4 parts (1p1u2w) 3596 | -8/Materials | Entered Storage 3662 | -8/Storage | Met a pair of Derelict thieves 3795 | -8/Storage | Lost 6 parts (1p1n4u) 3802 | -8/Storage | System corruption reached 10% 3831 | -8/Storage | Core integrity fell below 50% 3894 | -8/Storage | Core integrity fell below 20% 3899 | -8/Storage | Destroyed by G-47 Trooper with Particle Gun Last Messages --------------- Power failure, Lgt. Ion Engine shutdown. Broken Carbon-fiber Leg destroyed. Lgt. Ion Engine destroyed. Imp. Aluminum Leg destroyed. HW Map ----- +----------------------------------------------------+ | | | | | | | | | | | | | | | | | | | | | | | | | | | | | | | ?????????????????????????????????????????????????? | | ?????????????????????????????????????????????????? | | ?????????????????????????????????????????????????? | | ?????????????????????????????????????????????????? | | ??????????####???????????????????????????????????? | | ??????????#^^????????????????????????????????????? | | #########?# #????????????????????????????????????? | | ### #####+##############?????????????????? | | %+ +!! #?????????????????? | | ??""""" # #b #?????????????????? | | ??????" # ! #@ #?????????????????? | | ??????" + =% ug a #?????????????????? | | """""" # ##########gg #?????????????????? | | = # #???????## g ! #?????????????????? | | +% + ??########?????????????????? | | %# #?????????????????????????????????? | | ####+#### #?????????????????????????????????? | | ??#% % % #?????????????????????????????????? | | ??# #####/##/#?????????????????????????????????? | | ??# #??? #????????????????????????????????? | | ??# #?? !! #????????????????????????????????? | | ??# #?? % #????????????????????????????????? | | ??# #? ! %#????????????????????????????????? | | ??# #########+#????????????????????????????????? | | ??# #???????? #????????????????????????????????? | | ??# #???????? #????????????????????????????????? | | ??# #???????? ?????????????????????????????????? | | ??# #??????????????????????????????????????????? | | ??# #??????????????????????????????????????????? | | ??# #??????????????????????????????????????????? | | ??# #??????????????????????????????????????????? | | ??# #??????????????????????????????????????????? | | ??# #??????????????????????????????????????????? | | ??# #??????????????????????????????????????????? | | ??# #??????????????????????????????????????????? | +----------------------------------------------------+ Best States ------------- Heat Dissipation 31 Energy Generation 18 Energy Capacity 265 Matter Stores 300 Matter Capacity 300 Sight Range 18 Robot Scan Range 14 Terrain Scan Density 10 Armor Coverage 450 Resistance: KI 20 Propulsion Shielding 33 Utility Shielding 33 Evasion (%) 55 Targeting Accuracy 8 Melee Accuracy 5 Recoil Reduction 4 Offensive Hacking 10 Item Schematics ----------------- None Robot Schematics ------------------ None Fabricated ------------ Nothing Repaired ---------- Aluminum Leg | 54% | -10/Materials Lgt. Ion Engine | 25% | -8/Materials Studied --------- None Alien Tech Used ----------------- None Achievements -------------- None Challenges ------------ None Game ------ Seed WarlordEnergyDesublimator Manual? 0 Play Time 00:47:40 Cumulative 15.9 hours Start 2026.07.21 @ 18:01:04 End 2026.07.21 @ 18:50:50 Sessions 1 Manual Loads 0 Difficulty Rogue Special Mode None Game No. 17 Rogue 16 Adventurer 1 Explorer 0 Win Type - Total 0 Types 0/0/0/0/0/0/0/0/0/0 Lore% 4 Gallery% 17 Achievement% 15 Wizard Run 0 Options --------- Layout 1 ASCII 0 Keyboard 0 Movement Arrows Keybinds 0 Fullscreen 1 Font 16/SmallcapsGlow Map View 25x20 Zoom Use 71% Tactical HUD 0 Map Filters NONE Filters NONE Steam SD RUN: b9fb373a-17d5-43c2-a9d5-63d68dd9acba